[Event "7th Iberoamerican-ch 2019"]
[Site "Linares"]
[Date "2019.08.16"]
[Round "7.37"]
[White "Garcia Morales, Ivette Ale"]
[Black "Diaz Mino, Pablo"]
[Result "0-1"]
[ECO "E62"]
[WhiteElo "1988"]
[BlackElo "2239"]
[Annotator "RC"]
[PlyCount "136"]
[EventDate "2019.08.10"]
[EventType "swiss"]
[EventCountry "ESP"]
[SourceTitle "playchess.com"]
[Source "ChessBase"]
[SourceQuality "1"]
[TimeControl "5400+30"]

1. d4 Nf6 2. Nf3 g6 3. g3 Bg7 4. Bg2 O-O 5. O-O d6 6. c4 c6 7. Nc3 Qa5 {[%emt 0:02:48]} 8. h3 {[%emt 0:04:25]} Be6 {[%emt 0:01:45]} 9. Qd3 {[%emt 0:02:07]} Qa6 {[%emt 0:00:32]} 10. b3 {[%emt 0:07:27]} d5 {[%emt 0:00:53]} 11. Ne5 {[%emt 0:10:05]} Rd8 {[%emt 0:10:04]} 12. cxd5 {[%emt 0:07:37]} Nxd5 {[%emt 0:10:11]} 13. Nxd5 {[%emt 0:16:44]} Bxd5 {[%emt 0:00:32]} 14. Qxa6 {[%emt 0:00:11]} Nxa6 {[%emt 0:00:11]} 15. e3 {[%emt 0:01:46]} Bxg2 {[%emt 0:08:39]} 16. Kxg2 {[%emt 0:00:25]} Bxe5 {[%emt 0:03:11]} 17. dxe5 {[%emt 0:00:09]} Rd5 {[%emt 0:05:16]} 18. f4 {[%emt 0:14:01]} Rad8 {[%emt 0:07:12]} 19. Rf2 {[%emt 0:05:33]} R8d7 {[%emt 0:12:45]} 20. Ba3 {[%emt 0:08:59]} Ra5 {[%emt 0:04:38]} 21. Bb2 {[%emt 0:02:00]} Rd3 {[%emt 0:09:31]} 22. Kf3 {[%emt 0:00:52]} Rad5 {[%emt 0:02:27]} 23. Ba3 {[%emt 0:01:43]} Kf8 {[%emt 0:00:42]} 24. Rh1 {[%emt 0:03:30]} Nc7 {[%emt 0:04:04]} 25. g4 {[%emt 0:00:38]} g5 {[%emt 0:02:56]} 26. Ke4 {[%emt 0:07:57]} gxf4 {[%emt 0:05:51]} 27. Rxf4 {[%emt 0:00:27]} Ne6 {[%emt 0:00:26]} 28. Rf5 {[%emt 0:00:23]} Rd1 {[%emt 0:00:18]} 29. Rxd1 {[%emt 0:01:10]} Rxd1 {[%emt 0:00:02]} 30. h4 {[%emt 0:01:50]} c5 {[%emt 0:00:30]} 31. Rf2 {[%emt 0:01:04]} a5 {[%emt 0:01:05]} 32. Rc2 {[%emt 0:00:31]} b6 {[%emt 0:00:07]} 33. Kf3 Kg7 {[%emt 0:00:18]} 34. Bb2 {[%emt 0:02:01]} Kg6 {[%emt 0:01:06]} 35. Rf2 {[%emt 0:01:00]} h6 {[%emt 0:03:21]} 36. Ke4 {[%emt 0:00:10]} Rg1 {[%emt 0:00:39]} 37. Kf3 {[%emt 0:01:41]} h5 {[%emt 0:00:30]} 38. gxh5+ {[%emt 0:00:30]} Kxh5 {[%emt 0:00:30]} 39. Ke4 {[%emt 0:00:30]} Kxh4 {[%emt 0:00:28]} 40. Kd5 {[%emt 0:00:06]} Nd8 {[%emt 0:00:30]} 41. Rh2+ {[%emt 0:00:01]} Kg3 {[%emt 0:01:32]} 42. Rh8 {[%emt 0:00:12]} Kf3 {[%emt 0:01:13]} 43. Rxd8 {[%emt 0:00:25]} Rd1+ {[%emt 0:00:05]} 44. Bd4 {[%emt 0:00:03]} cxd4 {[%emt 0:00:39]} 45. exd4 {[%emt 0:00:01]} Ke3 {[%emt 0:00:30]} 46. Kc4 {[%emt 0:00:19]} e6 {[%emt 0:04:17]} 47. a4 {[%emt 0:00:51]} Rd3 {[%emt 0:00:14]} 48. Rd7 {[%emt 0:00:56]} Rd2 {[%emt 0:00:39]} 49. b4 {[%emt 0:02:20]} axb4 {[%emt 0:00:12]} 50. Kxb4 {[%emt 0:00:03]} Rxd4+ {[%emt 0:01:06]} 51. Rxd4 {[%emt 0:00:04]} Kxd4 {[%emt 0:00:01]} 52. Kb5 {[%emt 0:00:07]} Kxe5 {[%emt 0:00:06]} 53. Kxb6 f5 {[%emt 0:00:01]} 54. a5 {[%emt 0:01:17]} f4 {[%emt 0:00:01]} 55. a6 {[%emt 0:00:06]} f3 {[%emt 0:00:04]} 56. a7 {[%emt 0:00:04]} f2 {[%emt 0:00:04]} 57. a8=Q {[%emt 0:00:07]} f1=Q {[%emt 0:00:03]} 58. Qb8+ {[%emt 0:00:36]} Ke4 {[%emt 0:00:43]} 59. Qb7+ {[%emt 0:00:24]} Ke3 {[%emt 0:00:21]} 60. Kc5 {[%emt 0:01:52]} e5 {[%emt 0:00:53]} 61. Qd5 {[%emt 0:00:53]} Qf8+ {[%emt 0:01:09]} 62. Kc4 {[%emt 0:00:50]} Qf4+ {[%emt 0:00:32]} 63. Kb3 {[%emt 0:00:30]} Qd4 {[%emt 0:00:47]} 64. Qg2 {[%emt 0:00:33]} Qd3+ {[%emt 0:00:06]} 65. Kb4 {[%emt 0:00:30]} Qe4+ {[%emt 0:00:30]} 66. Qxe4+ {[%emt 0:00:43]} Kxe4 {[%emt 0:00:00]} 67. Kc4 {[%emt 0:00:02]} Kf3 {[%emt 0:00:00]} 68. Kd3 {[%emt 0:00:30]} e4+ {[%emt 0:00:27]} 0-1

[Event "7th Iberoamerican-ch 2019"]
[Site "Linares"]
[Date "2019.08.16"]
[Round "7.38"]
[White "Paiva, Henrique M A Alberga"]
[Black "Torres Sanchez, Jose"]
[Result "1/2-1/2"]
[ECO "B28"]
[WhiteElo "2106"]
[BlackElo "2304"]
[Annotator "NA"]
[PlyCount "39"]
[EventDate "2019.08.10"]
[EventType "swiss"]
[EventCountry "ESP"]
[SourceTitle "playchess.com"]
[Source "ChessBase"]
[SourceQuality "1"]
[TimeControl "5400+30"]

1. e4 {[%emt 0:00:00]} c5 {[%emt 0:00:00]} 2. Nf3 {[%emt 0:00:08]} a6 {[%emt 0:00:00]} 3. c3 {[%emt 0:01:52]} d5 {[%emt 0:00:01]} 4. exd5 {[%emt 0:02:56]} Qxd5 {[%emt 0:00:10]} 5. d4 {[%emt 0:01:04]} g6 {[%emt 0:00:16]} 6. Be2 {[%emt 0:00:27]} Bg7 {[%emt 0:00:08]} 7. O-O {[%emt 0:00:11]} Nf6 {[%emt 0:00:44]} 8. c4 {[%emt 0:07:08]} Qd6 {[%emt 0:00:27]} 9. Nc3 {[%emt 0:02:28]} O-O {[%emt 0:01:55]} 10. dxc5 {[%emt 0:03:28]} Qxc5 {[%emt 0:00:12]} 11. Be3 {[%emt 0:00:17]} Qa5 {[%emt 0:07:09]} 12. Qb3 {[%emt 0:06:09]} Nbd7 {[%emt 0:00:59]} 13. Nd5 {[%emt 0:06:57]} Nxd5 {[%emt 0:09:36]} 14. cxd5 {[%emt 0:00:05]} Nf6 {[%emt 0:00:07]} 15. Rfd1 {[%emt 0:00:27]} Bd7 {[%emt 0:00:29]} 16. a4 {[%emt 0:00:58]} Bf5 {[%emt 0:06:36]} 17. Rac1 {[%emt 0:06:20]} Bd7 {[%emt 0:08:54]} 18. Ra1 {[%emt 0:00:15]} Bf5 {[%emt 0:01:05]} 19. Rac1 {[%emt 0:00:11]} Bd7 {[%emt 0:17:49]} 20. Ra1 {[%emt 0:01:17]} 1/2-1/2

[Event "7th Iberoamerican-ch 2019"]
[Site "Linares"]
[Date "2019.08.16"]
[Round "7.39"]
[White "Riquelme Valero, Manuel Damian"]
[Black "Gines Abad, Pedro"]
[Result "1/2-1/2"]
[ECO "D27"]
[WhiteElo "2157"]
[BlackElo "1964"]
[Annotator "NA"]
[PlyCount "31"]
[EventDate "2019.08.10"]
[EventType "swiss"]
[EventCountry "ESP"]
[SourceTitle "playchess.com"]
[Source "ChessBase"]
[SourceQuality "1"]
[TimeControl "5400+30"]

1. d4 {[%emt 0:00:00]} d5 {[%emt 0:06:55]} 2. c4 {[%emt 0:00:00]} dxc4 {[%emt 0:00:36]} 3. Nf3 {[%emt 0:00:57]} c5 {[%emt 0:01:52]} 4. e3 {[%emt 0:01:55]} Nf6 {[%emt 0:05:31]} 5. Bxc4 {[%emt 0:00:25]} e6 {[%emt 0:00:09]} 6. O-O {[%emt 0:00:29]} a6 {[%emt 0:00:07]} 7. dxc5 {[%emt 0:03:11]} Qxd1 {[%emt 0:00:19]} 8. Rxd1 {[%emt 0:00:14]} Bxc5 {[%emt 0:00:06]} 9. Nbd2 {[%emt 0:02:39]} b5 {[%emt 0:04:58]} 10. Be2 {[%emt 0:00:13]} Nbd7 {[%emt 0:00:43]} 11. a4 {[%emt 0:01:36]} b4 {[%emt 0:05:18]} 12. b3 {[%emt 0:03:31]} Bb7 {[%emt 0:02:47]} 13. Bb2 {[%emt 0:00:35]} Ke7 {[%emt 0:03:56]} 14. Rac1 {[%emt 0:01:28]} Rhc8 {[%emt 0:01:38]} 15. Nc4 {[%emt 0:04:19]} Bd5 {[%emt 0:07:16]} 16. Nfd2 1/2-1/2

[Event "7th Iberoamerican-ch 2019"]
[Site "Linares"]
[Date "2019.08.16"]
[Round "7.40"]
[White "Sanchez Jerez, Emilio Miguel"]
[Black "Ingunza Curro, Andres"]
[Result "0-1"]
[ECO "A01"]
[WhiteElo "2141"]
[BlackElo "2103"]
[Annotator "ChessBase"]
[PlyCount "104"]
[EventDate "2019.08.10"]
[EventType "swiss"]
[EventCountry "ESP"]
[SourceTitle "playchess.com"]
[Source "ChessBase"]
[SourceQuality "1"]
[TimeControl "5400+30"]

1. b3 e5 2. Bb2 Nc6 3. e3 Nf6 4. Nf3 e4 5. Ne5 Bd6 6. Ng4 {[%emt 0:01:42]} Be7 {[%emt 0:03:46]} 7. Nxf6+ {[%emt 0:01:00]} Bxf6 {[%emt 0:00:24]} 8. Bxf6 {[%emt 0:00:06]} Qxf6 {[%emt 0:00:05]} 9. Nc3 {[%emt 0:00:02]} Qe5 {[%emt 0:03:37]} 10. Bc4 {[%emt 0:00:53]} Ne7 {[%emt 0:01:41]} 11. f4 {[%emt 0:00:44]} exf3 {[%emt 0:20:15]} 12. Qxf3 {[%emt 0:00:44]} f5 {[%emt 0:06:23]} 13. O-O {[%emt 0:02:27]} c6 {[%emt 0:03:26]} 14. d4 {[%emt 0:00:35]} Qc7 {[%emt 0:06:33]} 15. e4 b5 {[%emt 0:02:57]} 16. exf5 {[%emt 0:03:55]} Qd6 {[%emt 0:11:21]} 17. f6 {[%emt 0:05:08]} gxf6 {[%emt 0:01:33]} 18. Qe3 {[%emt 0:08:06]} f5 {[%emt 0:12:51]} 19. Bd3 {[%emt 0:17:49]} O-O {[%emt 0:04:41]} 20. Rae1 {[%emt 0:16:31]} Rf7 {[%emt 0:01:58]} 21. a4 {[%emt 0:05:42]} a6 {[%emt 0:04:00]} 22. Ne2 {[%emt 0:07:37]} Bb7 {[%emt 0:01:29]} 23. c4 {[%emt 0:03:20]} Raf8 {[%emt 0:03:52]} 24. c5 {[%emt 0:01:09]} Qg6 {[%emt 0:05:58]} 25. Nf4 {[%emt 0:01:53]} Qh6 {[%emt 0:00:51]} 26. b4 {[%emt 0:07:03]} Rg7 {[%emt 0:02:11]} 27. Bc2 {[%emt 0:02:16]} Ng6 {[%emt 0:01:27]} 28. g3 {[%emt 0:01:35]} Kh8 {[%emt 0:00:13]} 29. Nxg6+ {[%emt 0:00:30]} Qxg6 {[%emt 0:00:30]} 30. Qe5 {[%emt 0:03:07]} h5 {[%emt 0:01:30]} 31. Rxf5 {[%emt 0:00:48]} Rxf5 {[%emt 0:00:36]} 32. Bxf5 {[%emt 0:00:30]} Qg5 {[%emt 0:00:41]} 33. Rf1 {[%emt 0:08:28]} h4 34. Kg2 bxa4 {[%emt 0:01:22]} 35. g4 {[%emt 0:02:20]} a3 36. Qf4 Qxf4 {[%emt 0:00:54]} 37. Rxf4 {[%emt 0:01:07]} Re7 38. Rf3 {[%emt 0:01:00]} a2 {[%emt 0:00:43]} 39. Ra3 {[%emt 0:00:41]} Re2+ {[%emt 0:00:02]} 40. Kf3 Rxh2 41. g5 {[%emt 0:01:08]} Rb2 {[%emt 0:00:46]} 42. Kg4 {[%emt 0:00:33]} Kg7 43. Bxd7 Rxb4 {[%emt 0:00:54]} 44. Be6 {[%emt 0:01:00]} Rxd4+ {[%emt 0:00:25]} 45. Kh5 {[%emt 0:00:29]} Re4 {[%emt 0:00:26]} 46. Bxa2 {[%emt 0:00:19]} Bc8 {[%emt 0:00:22]} 47. g6 {[%emt 0:00:41]} h3 {[%emt 0:01:07]} 48. Bb1 {[%emt 0:00:27]} Re5+ {[%emt 0:00:22]} 49. Kh4 {[%emt 0:00:15]} h2 {[%emt 0:00:08]} 50. Rh3 {[%emt 0:00:49]} Bxh3 {[%emt 0:00:11]} 51. Be4 {[%emt 0:00:20]} Rxe4+ {[%emt 0:00:07]} 52. Kg5 h1=Q 0-1

[Event "7th Iberoamerican-ch 2019"]
[Site "Linares"]
[Date "2019.08.17"]
[Round "8.2"]
[White "Delgado Ramirez, Neuris"]
[Black "Albornoz Cabrera, Carlos Daniel"]
[Result "0-1"]
[ECO "B30"]
[WhiteElo "2612"]
[BlackElo "2566"]
[Annotator "RC"]
[PlyCount "52"]
[EventDate "2019.08.10"]
[EventType "swiss"]
[EventCountry "ESP"]
[SourceTitle "playchess.com"]
[Source "ChessBase"]
[SourceQuality "1"]
[TimeControl "5400+30"]

1. e4 {[%emt 0:07:28]} c5 {[%emt 0:00:00]} 2. Nf3 {[%emt 0:00:06]} Nc6 {[%emt 0:00:00]} 3. Bb5 {[%emt 0:00:04]} d6 {[%emt 0:00:00]} 4. O-O {[%emt 0:00:07]} Bd7 {[%emt 0:00:00]} 5. Re1 {[%emt 0:00:11]} Nf6 {[%emt 0:00:07]} 6. h3 {[%emt 0:00:06]} Ne5 {[%emt 0:00:13]} 7. Bf1 {[%emt 0:02:28]} e6 {[%emt 0:00:55]} 8. c3 {[%emt 0:00:43]} Nxf3+ {[%emt 0:01:41]} 9. Qxf3 {[%emt 0:00:04]} Be7 {[%emt 0:00:21]} 10. d4 {[%emt 0:05:50]} Bc6 {[%emt 0:00:17]} 11. dxc5 {[%emt 0:05:32]} dxc5 {[%emt 0:04:18]} 12. Qf4 {[%emt 0:09:57]} g5 {[%emt 0:10:55]} 13. Qg3 {[%emt 0:03:10]} Rg8 {[%emt 0:06:02]} 14. e5 {[%emt 0:00:37]} Ne4 {[%emt 0:04:31]} 15. Qd3 {[%emt 0:01:26]} Qxd3 {[%emt 0:02:09]} 16. Bxd3 {[%emt 0:00:02]} O-O-O {[%emt 0:00:08]} 17. Be2 {[%emt 0:11:11]} g4 {[%emt 0:05:49]} 18. hxg4 {[%emt 0:02:25]} h5 {[%emt 0:00:51]} 19. Na3 {[%emt 0:09:41]} hxg4 {[%emt 0:03:04]} 20. Bf4 {[%emt 0:04:50]} Bg5 {[%emt 0:09:50]} 21. Bxg5 {[%emt 0:18:44]} Rxg5 {[%emt 0:00:06]} 22. Nc4 {[%emt 0:00:12]} b5 {[%emt 0:15:03]} 23. Ne3 {[%emt 0:00:28]} g3 {[%emt 0:01:12]} 24. f4 {[%emt 0:01:21]} Rg7 {[%emt 0:01:36]} 25. Ng4 {[%emt 0:11:59]} Rh8 {[%emt 0:01:51]} 26. Bf3 {[%emt 0:02:57]} Rxg4 {[%emt 0:01:35]} 0-1

[Event "7th Iberoamerican-ch 2019"]
[Site "Linares"]
[Date "2019.08.17"]
[Round "8.3"]
[White "Huerga Leache, Mikel"]
[Black "Lopez Martinez, Josep Manuel"]
[Result "1/2-1/2"]
[ECO "B40"]
[WhiteElo "2440"]
[BlackElo "2581"]
[Annotator "ChessBase"]
[PlyCount "115"]
[EventDate "2019.08.10"]
[EventType "swiss"]
[EventCountry "ESP"]
[SourceTitle "playchess.com"]
[Source "ChessBase"]
[SourceQuality "1"]
[TimeControl "5400+30"]

1. e4 {[%emt 0:00:00]} c5 {[%emt 0:00:00]} 2. Nf3 {[%emt 0:00:06]} e6 {[%emt 0:00:09]} 3. c3 {[%emt 0:00:19]} Nf6 {[%emt 0:02:14]} 4. e5 {[%emt 0:00:13]} Nd5 {[%emt 0:00:16]} 5. d4 {[%emt 0:00:25]} cxd4 {[%emt 0:00:26]} 6. cxd4 {[%emt 0:00:12]} d6 {[%emt 0:02:13]} 7. Bc4 {[%emt 0:00:45]} Nb6 {[%emt 0:01:43]} 8. Bd3 {[%emt 0:07:04]} Bd7 {[%emt 0:04:40]} 9. O-O {[%emt 0:09:20]} Bc6 {[%emt 0:00:38]} 10. Nc3 {[%emt 0:02:07]} N8d7 {[%emt 0:03:01]} 11. Ng5 {[%emt 0:12:17]} Be7 {[%emt 0:10:14]} 12. Qh5 {[%emt 0:01:22]} g6 {[%emt 0:00:31]} 13. Qh6 {[%emt 0:09:55]} Bf8 {[%emt 0:01:25]} 14. Qh3 {[%emt 0:05:01]} dxe5 {[%emt 0:01:31]} 15. dxe5 {[%emt 0:08:12]} Nxe5 {[%emt 0:02:02]} 16. Bc2 {[%emt 0:02:25]} Bg7 {[%emt 0:02:57]} 17. Re1 {[%emt 0:04:00]} Qd4 {[%emt 0:10:14]} 18. Nxe6 {[%emt 0:05:35]} fxe6 {[%emt 0:00:09]} 19. Qxe6+ {[%emt 0:00:10]} Kf8 {[%emt 0:00:09]} 20. Be3 {[%emt 0:01:31]} Qb4 {[%emt 0:00:26]} 21. a3 {[%emt 0:07:09]} Qc4 {[%emt 0:06:31]} 22. Qd6+ {[%emt 0:00:40]} Kg8 {[%emt 0:00:12]} 23. Qd1 {[%emt 0:04:49]} Qf7 {[%emt 0:05:53]} 24. Bxb6 {[%emt 0:02:13]} axb6 {[%emt 0:00:13]} 25. Rxe5 {[%emt 0:01:21]} Qc7 {[%emt 0:00:16]} 26. Bb3+ {[%emt 0:00:56]} Kf8 {[%emt 0:00:09]} 27. Re3 {[%emt 0:00:28]} Be5 {[%emt 0:01:09]} 28. Nd5 {[%emt 0:04:08]} Qd6 {[%emt 0:00:43]} 29. Qe2 {[%emt 0:02:55]} Re8 {[%emt 0:02:44]} 30. Re1 {[%emt 0:02:23]} Bxh2+ {[%emt 0:05:05]} 31. Kh1 {[%emt 0:00:01]} Kg7 {[%emt 0:01:28]} 32. Re7+ {[%emt 0:02:48]} Rxe7 {[%emt 0:00:12]} 33. Qxe7+ {[%emt 0:00:02]} Qxe7 {[%emt 0:00:08]} 34. Rxe7+ {[%emt 0:00:03]} Kf8 {[%emt 0:00:05]} 35. Kxh2 {[%emt 0:01:56]} Bxd5 {[%emt 0:00:10]} 36. Re3 {[%emt 0:00:01]} Bc6 {[%emt 0:00:09]} 37. f4 {[%emt 0:01:03]} h6 {[%emt 0:02:08]} 38. Re6 {[%emt 0:00:10]} g5 {[%emt 0:00:32]} 39. f5 {[%emt 0:01:20]} Rh7 {[%emt 0:01:34]} 40. Kg3 {[%emt 0:00:52]} Rd7 {[%emt 0:00:29]} 41. Rf6+ {[%emt 0:00:32]} Ke7 {[%emt 0:02:14]} 42. Rf7+ {[%emt 0:00:42]} Kd6 {[%emt 0:00:20]} 43. Rxd7+ {[%emt 0:00:57]} Bxd7 {[%emt 0:00:12]} 44. f6 {[%emt 0:00:26]} h5 {[%emt 0:00:35]} 45. Kf2 {[%emt 0:00:27]} h4 {[%emt 0:00:08]} 46. Kf3 {[%emt 0:02:26]} Bc6+ {[%emt 0:00:37]} 47. Kg4 {[%emt 0:00:34]} Bxg2 {[%emt 0:01:07]} 48. Kxg5 {[%emt 0:00:00]} h3 {[%emt 0:00:23]} 49. Kg6 {[%emt 0:00:01]} h2 {[%emt 0:00:56]} 50. f7 {[%emt 0:00:05]} h1=Q {[%emt 0:00:21]} 51. f8=Q+ {[%emt 0:00:05]} Kc7 {[%emt 0:01:03]} 52. Qf4+ {[%emt 0:00:01]} Kd7 {[%emt 0:01:51]} 53. Qd4+ {[%emt 0:00:49]} Kc8 {[%emt 0:00:58]} 54. Be6+ {[%emt 0:02:28]} Kb8 {[%emt 0:00:14]} 55. Qf4+ {[%emt 0:00:59]} Ka7 {[%emt 0:00:09]} 56. Qa4+ {[%emt 0:00:00]} Kb8 {[%emt 0:00:08]} 57. Qf4+ {[%emt 0:00:02]} Ka7 {[%emt 0:00:08]} 58. Qa4+ {[%emt 0:00:05]} 1/2-1/2

[Event "7th Iberoamerican-ch 2019"]
[Site "Linares"]
[Date "2019.08.17"]
[Round "8.4"]
[White "Henriquez Villagra, Cristobal"]
[Black "Sosa, Tomas"]
[Result "1-0"]
[ECO "A21"]
[WhiteElo "2562"]
[BlackElo "2508"]
[Annotator "ChessBase"]
[PlyCount "135"]
[EventDate "2019.08.10"]
[EventType "swiss"]
[EventCountry "ESP"]
[SourceTitle "playchess.com"]
[Source "ChessBase"]
[SourceQuality "1"]
[TimeControl "5400+30"]

1. c4 {[%emt 0:00:00]} e5 {[%emt 0:03:27]} 2. Nc3 {[%emt 0:00:00]} Bb4 {[%emt 0:00:03]} 3. Nd5 {[%emt 0:00:18]} Bc5 {[%emt 0:00:07]} 4. b4 {[%emt 0:03:03]} Bf8 {[%emt 0:04:01]} 5. Bb2 {[%emt 0:05:57]} c6 {[%emt 0:01:32]} 6. Ne3 {[%emt 0:00:14]} d6 7. g3 {[%emt 0:02:40]} Be7 {[%emt 0:12:04]} 8. Bg2 {[%emt 0:05:01]} f5 {[%emt 0:02:54]} 9. c5 {[%emt 0:09:52]} Be6 {[%emt 0:05:14]} 10. Nf3 {[%emt 0:03:03]} Bf6 {[%emt 0:06:27]} 11. Qc2 {[%emt 0:04:15]} Ne7 {[%emt 0:01:05]} 12. Bh3 {[%emt 0:08:38]} g6 {[%emt 0:12:08]} 13. g4 Na6 {[%emt 0:08:19]} 14. a3 {[%emt 0:04:54]} dxc5 {[%emt 0:03:21]} 15. gxf5 {[%emt 0:10:09]} Nxf5 {[%emt 0:00:37]} 16. Nxf5 {[%emt 0:07:25]} gxf5 {[%emt 0:00:15]} 17. Bxf5 {[%emt 0:00:36]} Qd5 {[%emt 0:05:17]} 18. Be4 {[%emt 0:03:17]} Qd6 {[%emt 0:00:08]} 19. b5 {[%emt 0:02:42]} cxb5 {[%emt 0:02:33]} 20. Bxb7 {[%emt 0:00:04]} Rd8 {[%emt 0:00:12]} 21. Bxa6 {[%emt 0:00:05]} Qxa6 {[%emt 0:00:05]} 22. Qxc5 {[%emt 0:00:06]} Bd5 {[%emt 0:00:26]} 23. Qe3 {[%emt 0:01:41]} Qb6 {[%emt 0:02:10]} 24. Qxb6 {[%emt 0:04:06]} axb6 {[%emt 0:00:05]} 25. Rg1 {[%emt 0:00:06]} Bxf3 {[%emt 0:00:27]} 26. exf3 {[%emt 0:00:01]} Kf7 {[%emt 0:01:52]} 27. Rc1 {[%emt 0:01:33]} Rc8 {[%emt 0:02:32]} 28. Ke2 {[%emt 0:01:38]} Rc4 {[%emt 0:00:37]} 29. Rg4 {[%emt 0:04:20]} Rxc1 {[%emt 0:04:49]} 30. Bxc1 {[%emt 0:00:04]} Rc8 {[%emt 0:00:49]} 31. Bb2 {[%emt 0:02:50]} Rc4 {[%emt 0:02:39]} 32. Re4 {[%emt 0:02:36]} Ke6 {[%emt 0:00:37]} 33. Kd1 {[%emt 0:01:23]} Kf5 {[%emt 0:01:07]} 34. d3 {[%emt 0:00:22]} Rc5 {[%emt 0:01:58]} 35. f4 {[%emt 0:02:21]} exf4 {[%emt 0:01:15]} 36. Bxf6 {[%emt 0:00:04]} Kxf6 {[%emt 0:00:04]} 37. Rxf4+ {[%emt 0:00:02]} Kg6 {[%emt 0:02:57]} 38. Kd2 {[%emt 0:00:16]} Rc7 {[%emt 0:02:01]} 39. Rd4 {[%emt 0:00:47]} Kg7 {[%emt 0:05:12]} 40. Rg4+ {[%emt 0:03:46]} Kh8 {[%emt 0:02:06]} 41. Rb4 {[%emt 0:02:53]} Rf7 {[%emt 0:00:04]} 42. Ke3 {[%emt 0:02:42]} Re7+ {[%emt 0:00:05]} 43. Kd2 {[%emt 0:00:22]} Rf7 {[%emt 0:00:04]} 44. Ke3 {[%emt 0:00:21]} Re7+ {[%emt 0:00:04]} 45. Re4 {[%emt 0:00:03]} Ra7 {[%emt 0:00:04]} 46. Re5 {[%emt 0:01:03]} Rxa3 {[%emt 0:00:11]} 47. Rxb5 {[%emt 0:00:04]} Ra6 {[%emt 0:02:43]} 48. h4 Kg7 {[%emt 0:00:20]} 49. f4 {[%emt 0:01:02]} Ra1 {[%emt 0:01:24]} 50. d4 {[%emt 0:01:17]} Rh1 {[%emt 0:00:26]} 51. h5 {[%emt 0:00:12]} Re1+ {[%emt 0:00:22]} 52. Kd3 {[%emt 0:00:30]} Re6 {[%emt 0:00:12]} 53. Re5 {[%emt 0:00:14]} Rd6 {[%emt 0:02:25]} 54. Ke4 {[%emt 0:00:08]} Kf7 {[%emt 0:00:12]} 55. Rf5+ {[%emt 0:00:54]} Ke7 {[%emt 0:00:14]} 56. Rg5 {[%emt 0:01:11]} Rh6 {[%emt 0:01:13]} 57. Rd5 {[%emt 0:01:43]} Ke6 {[%emt 0:00:53]} 58. f5+ {[%emt 0:00:35]} Ke7 {[%emt 0:03:24]} 59. Rb5 {[%emt 0:00:15]} Kd7 {[%emt 0:00:12]} 60. Ke5 {[%emt 0:00:33]} Kc6 {[%emt 0:00:31]} 61. Rb1 {[%emt 0:02:11]} Rxh5 {[%emt 0:00:12]} 62. d5+ {[%emt 0:00:06]} Kb7 {[%emt 0:00:41]} 63. Ke6 {[%emt 0:00:03]} Rh2 {[%emt 0:00:08]} 64. Re1 {[%emt 0:00:14]} Rf2 {[%emt 0:01:10]} 65. f6 {[%emt 0:00:10]} b5 {[%emt 0:00:34]} 66. Ke7 {[%emt 0:00:43]} Kb6 {[%emt 0:01:00]} 67. d6 {[%emt 0:00:04]} Kc6 {[%emt 0:00:16]} 68. d7 {[%emt 0:00:13]} 1-0

[Event "7th Iberoamerican-ch 2019"]
[Site "Linares"]
[Date "2019.08.17"]
[Round "8.5"]
[White "Escobar Forero, Alder"]
[Black "Krysa, Leandro"]
[Result "1/2-1/2"]
[ECO "C78"]
[WhiteElo "2477"]
[BlackElo "2516"]
[Annotator "ChessBase"]
[PlyCount "38"]
[EventDate "2019.08.10"]
[EventType "swiss"]
[EventCountry "ESP"]
[SourceTitle "playchess.com"]
[Source "ChessBase"]
[SourceQuality "1"]
[TimeControl "5400+30"]

1. e4 {[%emt 0:00:00]} e5 {[%emt 0:00:00]} 2. Nf3 {[%emt 0:00:00]} Nc6 {[%emt 0:00:00]} 3. Bb5 {[%emt 0:00:00]} a6 {[%emt 0:00:00]} 4. Ba4 {[%emt 0:00:00]} Nf6 {[%emt 0:00:02]} 5. O-O {[%emt 0:00:05]} b5 {[%emt 0:00:06]} 6. Bb3 {[%emt 0:00:05]} Bb7 {[%emt 0:00:04]} 7. d3 {[%emt 0:01:02]} Be7 {[%emt 0:00:22]} 8. Nc3 {[%emt 0:00:17]} O-O {[%emt 0:00:22]} 9. a3 {[%emt 0:00:06]} Nd4 {[%emt 0:00:27]} 10. Ba2 {[%emt 0:03:57]} Nxf3+ {[%emt 0:00:28]} 11. Qxf3 {[%emt 0:00:07]} d6 {[%emt 0:00:11]} 12. Qg3 {[%emt 0:05:34]} c6 {[%emt 0:00:38]} 13. Be3 {[%emt 0:04:23]} Bc8 {[%emt 0:03:31]} 14. Rad1 {[%emt 0:13:51]} a5 {[%emt 0:15:18]} 15. Ne2 {[%emt 0:02:11]} Nh5 {[%emt 0:11:44]} 16. Qf3 {[%emt 0:00:06]} Nf6 {[%emt 0:00:11]} 17. Qg3 {[%emt 0:00:27]} Nh5 {[%emt 0:00:53]} 18. Qf3 {[%emt 0:00:04]} Nf6 {[%emt 0:00:07]} 19. Qg3 {[%emt 0:05:02]} Nh5 1/2-1/2